bitfinex/quotes_ETHUSD_20240810
["timestamp","ask_amount","ask_price","bid_price","bid_amount"]
[1723319302419,4.219182,2607.2,2606.8,2.7943]
[1723319302618,0.06706522,2607.1,2606.8,2.7943]
[1723319303333,1.9177,2607.3,2606.8,2.7943]
[1723319303535,0.0669498,2607.0,2606.8,2.7943]
[1723319303739,1.9177,2607.3,2606.8,2.7943]
[1723319303956,0.06680704,2606.9,2606.8,2.7943]
[1723319304122,1.91778,2607.2,2606.8,2.7943]
[1723319304316,0.06680704,2606.9,2606.8,2.7943]
[1723319304510,1.91778,2607.2,2606.8,2.7943]
[1723319304713,0.06678149,2606.9,2606.8,2.7943]
[1723319304913,1.91778,2607.2,2606.8,2.7943]
[1723319305115,0.06675594,2606.9,2606.8,2.7943]
[1723319305314,2.723505,2607.2,2606.8,2.7943]
[1723319305515,0.06808829,2606.9,2606.8,2.7943]
[1723319305719,2.723505,2607.2,2606.8,2.7943]
[1723319306153,0.06829137,2607.1,2606.8,2.7943]
[1723319319288,0.06829137,2607.1,2606.8,2.581085]
[1723319319452,7.3,2607.5,2607.0,2.6877]
[1723319319652,0.06713377,2607.4,2607.0,2.6877]
[1723319320183,0.06713377,2607.4,2607.2,4.60541]
[1723319320482,0.06713377,2607.4,2607.3,2.6877]
[1723319320782,0.06713377,2607.4,2607.3,5.34237198]
[1723319320983,0.06713377,2607.4,2607.3,3.42468198]
[1723319321288,1.91719,2608.0,2607.4,4.6053]
[1723319321445,9.21711,2608.1,2607.5,2.6877]
[1723319321645,1.91718,2608.0,2607.5,2.6877]
[1723319323462,1.91738,2607.8,2607.5,2.6877]
[1723319323804,1.91744,2607.7,2607.5,2.6877]
[1723319323994,1.91747,2607.6,2607.5,2.6877]
[1723319324493,1.91736,2607.8,2607.5,2.6877]
[1723319324705,2.600817,2607.8,2607.5,2.6877]
[1723319325251,4.518187,2607.8,2607.5,2.6877]
[1723319326188,2.600817,2607.8,2607.5,2.6877]
[1723319326998,6.83444,2608.0,2607.5,2.6877]
[1723319327158,1.91726,2607.9,2607.5,2.6877]
[1723319329486,1.91734,2607.8,2607.5,2.6877]
[1723319330690,4.91721,2608.0,2607.5,2.6877]
[1723319330889,6.3721727,2608.0,2607.5,2.6877]
[1723319332780,0.06614051,2607.9,2607.5,2.6877]
[1723319335422,1.98339051,2607.9,2607.5,2.6877]
[1723319336415,0.06614051,2607.9,2607.5,2.6877]
[1723319339682,1.22414051,2607.9,2607.5,2.6877]
[1723319341217,3.14141051,2607.9,2607.5,2.6877]
[1723319341625,3.07541,2607.7,2607.5,2.6877]
[1723319341807,1.91747,2607.6,2607.5,2.6877]
[1723319342003,1.98150586,2607.6,2607.5,2.6877]
[1723319342515,3.89897586,2607.6,2607.5,2.6877]
[1723319342825,3.89897586,2607.6,2606.6,1.91816]
[1723319342826,1.91773,2607.3,2606.7,2.6838]
[1723319343033,1.91777,2607.2,2606.7,2.6838]
[1723319343248,1.98186841,2607.2,2606.7,2.6838]
[1723319343593,1.91784,2607.1,2606.7,2.6838]
[1723319344017,0.0638037,2607.0,2606.7,2.6838]
[1723319347892,1.91799,2606.9,2606.7,2.6838]
[1723319348321,0.06344603,2606.8,2606.7,2.6838]
[1723319352404,1.91773,2607.3,2606.7,2.6838]
[1723319352611,0.06340038,2606.8,2606.7,2.6838]
[1723319352809,1.91773,2607.3,2606.7,2.6838]
[1723319352810,1.91773,2607.3,2606.7,3.15167886]
[1723319353025,1.91773,2607.3,2606.7,2.6838]
[1723319353026,0.06330681,2606.8,2606.7,2.6838]
[1723319353231,1.91773,2607.3,2606.7,2.6838]
[1723319353434,0.06323656,2606.8,2606.7,2.6838]
[1723319353634,1.91773,2607.3,2606.7,4.60193]
[1723319353815,0.06324769,2606.8,2606.7,4.56863]
[1723319354017,9.21763,2607.4,2606.8,2.6505]
[1723319354607,1.91763,2607.4,2606.8,2.6505]
[1723319354807,4.91763,2607.4,2606.8,2.6505]
[1723319355006,1.91758,2607.5,2606.9,2.6505]
[1723319355350,9.21741,2607.7,2607.1,2.6505]
[1723319355563,7.3,2607.7,2607.1,3.107335]
[1723319355843,7.3,2607.7,2607.1,3.18403789]
[1723319356020,7.3,2607.7,2607.2,1.91774]
[1723319356344,7.3,2607.7,2607.3,2.6505]
[1723319356558,3.68637375,2607.9,2607.3,2.6505]
[1723319358559,1.91734,2607.8,2607.3,2.6505]
[1723319359234,9.21719,2608.0,2607.4,1.91761]
[1723319359443,7.3,2608.0,2607.5,2.72719652]
[1723319359628,7.3,2608.0,2607.7,2.6505]
[1723319360225,7.3,2608.5,2608.0,1.91712]
[1723319360435,1.91671,2608.7,2608.1,2.6505]
[1723319360636,5.304381,2608.7,2608.1,2.6505]
[1723319360963,1.91671,2608.7,2608.2,2.6505]
[1723319361265,3.83312,2608.9,2608.2,2.6505]
[1723319361613,3.83312,2608.9,2608.3,2.6505]
[1723319361614,1.91655,2608.9,2608.3,2.6505]
[1723319361808,1.91639,2609.1,2608.4,2.6505]
[1723319362160,1.91625,2609.3,2608.4,2.6505]
[1723319362161,1.91625,2609.3,2608.7,2.6505]
[1723319362753,0.06599245,2609.2,2608.7,2.6505]
[1723319363713,0.06599245,2609.2,2608.7,4.56715]
[1723319364067,1.91639,2609.1,2608.8,2.6505]
[1723319364263,1.91651,2608.9,2608.8,2.6505]
[1723319364623,1.98227523,2608.9,2608.8,2.6505]
[1723319368441,3.89878523,2608.9,2608.8,2.64560087]
[1723319368639,1.98227523,2608.9,2608.8,2.64560087]
[1723319369751,3.89878523,2608.9,2608.8,2.64560087]
[1723319369945,4.28866375,2608.9,2608.8,2.64560087]
[1723319372164,1.91675,2608.6,2608.1,2.6505]
[1723319372368,1.9169,2608.4,2608.1,2.6505]
[1723319372570,0.19169,2608.3,2608.1,2.6505]
[1723319372788,0.0652852,2608.3,2608.1,2.6505]
[1723319373298,1.91703,2608.2,2608.1,2.6505]
[1723319373699,1.982287,2608.2,2608.1,2.6505]
[1723319375507,0.065257,2608.2,2608.1,2.6505]
[1723319375793,1.91697,2608.3,2608.1,2.6505]
[1723319376094,0.06536435,2608.2,2608.1,2.6505]
[1723319376292,2.300348,2608.3,2608.1,2.6505]
[1723319376793,0.06536435,2608.2,2608.1,2.6505]
[1723319377119,2.300348,2608.3,2608.1,2.6505]
[1723319377603,0.06536435,2608.2,2608.1,2.6505]
[1723319377891,2.300348,2608.3,2608.1,2.6505]
[1723319378096,0.2300348,2608.2,2608.1,2.6505]
[1723319378297,0.29539915,2608.2,2608.1,2.6505]
[1723319378795,2.21242915,2608.2,2608.1,2.6505]
[1723319380402,0.29539915,2608.2,2608.1,2.6505]
[1723319380572,0.06536435,2608.2,2608.1,2.6505]
[1723319380902,3.83341,2608.7,2608.1,2.6505]
[1723319381101,1.91675,2608.6,2608.1,2.6505]
[1723319381266,1.98245501,2608.6,2608.1,2.6505]
[1723319382111,1.91682,2608.5,2608.1,2.6505]
[1723319382273,1.91688,2608.4,2608.1,2.6505]
[1723319382603,1.98240555,2608.4,2608.1,2.6505]
[1723319383870,0.06552555,2608.4,2608.1,2.6505]
[1723319388922,0.06552555,2608.4,2608.1,2.727172]
[1723319389124,0.06484315,2608.3,2608.1,3.1916022]
[1723319389308,0.06484315,2608.3,2608.2,4.52161]
[1723319389513,1.91663,2608.8,2608.3,2.6046]
[1723319392599,0.0651635,2608.7,2608.3,2.6046]
[1723319392999,1.91663,2608.8,2608.3,2.6046]
[1723319393195,0.06505037,2608.6,2608.3,2.6046]
[1723319393412,0.0651401,2608.7,2608.3,2.6046]
[1723319393614,0.06496063,2608.5,2608.3,2.6046]
[1723319393812,1.91663,2608.8,2608.3,2.6046]
[1723319394015,0.06487088,2608.4,2608.3,2.6046]
[1723319394501,1.91673,2608.7,2608.3,2.6046]
[1723319394702,0.06505037,2608.6,2608.3,2.6046]
[1723319400636,1.98178037,2608.6,2608.3,2.6046]
[1723319402249,0.06505037,2608.6,2608.3,2.6046]
[1723319411568,0.06505037,2608.6,2608.5,1.91681]
[1723319411782,12.19,2609.1,2608.5,1.91681]
[1723319411959,1.91666,2608.7,2608.6,2.7746]
[1723319412171,3.1350901,2608.7,2608.6,2.7746]
[1723319412478,3.44861705,2608.7,2608.6,2.7746]
[1723319413667,1.91706,2608.2,2607.8,2.5802]
[1723319413930,0.05800547,2608.1,2607.8,2.5802]
[1723319414163,1.91725,2607.9,2607.8,2.5802]
[1723319414371,2.28833756,2607.9,2607.8,2.5802]
[1723319414674,0.37108756,2607.9,2607.8,2.5802]
[1723319417350,0.05786201,2607.9,2607.8,2.5802]
[1723319418072,1.97511201,2607.9,2607.8,2.5802]
[1723319420270,0.05786201,2607.9,2607.8,2.5802]
[1723319422543,0.05750874,2607.9,2607.8,2.5802]
[1723319422757,1.91698,2608.3,2607.8,2.5802]
[1723319422965,0.05777806,2608.2,2607.8,2.5802]
[1723319423167,3.330367,2608.3,2607.8,2.5802]
[1723319423349,0.05777806,2608.2,2607.8,2.5802]
[1723319423652,9.21683,2608.5,2607.9,1.99392742]
[1723319423852,9.21683,2608.5,2608.0,2.5802]
[1723319423853,0.05735087,2608.1,2608.0,2.5802]
[1723319424037,9.21683,2608.5,2608.0,2.5802]
[1723319424245,10.3615447,2608.5,2608.0,2.5802]
[1723319424453,0.05765093,2608.4,2608.0,2.5802]
[1723319424647,1.97453093,2608.4,2608.0,2.5802]
[1723319424880,1.91702,2608.3,2608.0,2.5802]
[1723319425040,1.9171,2608.1,2608.0,2.5802]
[1723319425240,3.8342,2608.1,2608.0,2.5802]
[1723319425434,3.89166591,2608.1,2608.0,2.5802]
[1723319426251,3.89166591,2608.1,2607.3,1.91764]
[1723319426252,1.91725,2607.9,2607.4,2.5802]
[1723319426575,0.05746582,2607.8,2607.4,2.5802]
[1723319429743,0.05746582,2607.8,2607.5,2.5802]
[1723319430145,1.91718,2608.0,2607.5,2.5802]
[1723319430348,0.05704561,2607.9,2607.5,2.5802]
[1723319430541,1.9171,2608.1,2607.5,2.5802]
[1723319430742,0.05713538,2608.0,2607.5,2.5802]
[1723319431456,0.05713538,2608.0,2607.5,4.49773]
[1723319431657,0.05713538,2608.0,2607.6,2.5802]
[1723319431861,0.05713538,2608.0,2607.6,3.029973]
[1723319432087,0.10542089,2608.0,2607.7,2.5802]
[1723319432383,0.10507856,2607.9,2607.7,2.5802]
[1723319432593,9.21707,2608.2,2607.7,2.5802]
[1723319432896,0.10525442,2608.1,2607.7,2.5802]
[1723319434081,0.10525442,2608.1,2607.7,3.0749423]
[1723319434300,0.10525442,2608.1,2607.7,2.5802]
[1723319434665,2.02236442,2608.1,2607.7,2.5802]
[1723319441208,3.93952442,2608.1,2607.7,2.5802]
[1723319443419,2.02238442,2608.1,2607.7,2.5802]
[1723319443574,1.91732,2607.8,2607.7,2.5802]
[1723319443913,2.34676278,2607.8,2607.7,2.5802]
[1723319444211,0.10498678,2607.8,2607.7,2.5802]
[1723319445512,2.02230678,2607.8,2607.7,2.5802]
[1723319445689,2.02230678,2607.8,2607.5,2.5793]
[1723319446827,1.91745,2607.7,2607.5,2.5793]
[1723319447029,0.20224368,2607.6,2607.5,2.5793]
[1723319447222,0.30743658,2607.6,2607.5,2.5793]
[1723319447744,0.30743658,2607.6,2606.9,2.5793]
[1723319447745,1.91776,2607.3,2606.9,2.5793]
[1723319447939,1.9179,2607.1,2606.9,2.5793]
[1723319448103,1.91791,2607.0,2606.9,2.5793]
[1723319448441,0.10453363,2607.0,2606.9,2.5793]
[1723319449517,2.22468699,2607.0,2606.9,2.5793]
[1723319450201,2.22468699,2607.0,2606.7,2.5793]
[1723319450202,1.91804,2606.9,2606.7,2.5793]
[1723319450402,0.10328212,2606.8,2606.7,2.5793]
[1723319451430,1.9182,2606.6,2606.3,2.5793]
[1723319451740,0.10301803,2606.5,2606.3,2.5793]
[1723319452901,0.10399634,2606.4,2606.3,2.5793]
[1723319453298,7.3,2607.1,2606.3,2.83723]
[1723319453538,7.3,2607.1,2606.4,2.6560238]
[1723319454335,7.3,2607.1,2606.7,2.5648]
[1723319456159,1.91766,2607.4,2606.8,2.5648]
[1723319456315,1.91775,2607.3,2606.8,2.5648]
[1723319456514,3.331291,2607.3,2606.8,2.5648]
[1723319458129,1.413541,2607.3,2606.8,2.5648]
[1723319458335,1.91798,2606.9,2606.4,2.5648]
[1723319459261,1.9181,2606.8,2606.4,2.5648]
[1723319459432,2.301708,2606.8,2606.4,2.5648]
[1723319460571,1.91813,2606.7,2606.4,2.5648]
[1723319461371,1.91827,2606.6,2606.4,2.5648]
[1723319463368,1.91828,2606.5,2606.4,2.5648]
[1723319467174,1.91822,2606.6,2606.4,2.5648]
[1723319467484,1.91813,2606.7,2606.4,2.5648]
[1723319467665,0.10334125,2606.5,2606.4,2.5648]
[1723319467843,3.83632,2606.7,2606.4,2.5648]
[1723319468181,0.1030406,2606.5,2606.4,2.5648]
[1723319468477,0.10326608,2606.5,2606.4,2.5648]
[1723319468690,1.91808,2606.8,2606.4,2.5648]
[1723319468986,0.10326608,2606.5,2606.4,2.5648]
[1723319469171,1.91808,2606.8,2606.4,2.5648]
[1723319469389,0.10344211,2606.7,2606.4,2.5648]
[1723319469584,9.21787,2607.1,2606.6,2.5648]
[1723319469885,2.02164489,2607.0,2606.6,2.5648]
[1723319470511,0.10372489,2607.0,2606.6,2.5648]
[1723319476682,0.10372489,2607.0,2606.7,0.07672417]
[1723319476915,0.10372489,2607.0,2606.9,2.6268]
[1723319477222,1.91762,2607.4,2606.9,2.6268]
[1723319477374,0.1040299,2607.3,2606.9,2.6268]
[1723319479780,1.91788,2607.1,2606.9,2.6268]
[1723319479974,1.91814,2606.7,2606.3,2.6268]
[1723319480175,0.10373703,2606.6,2606.3,2.6268]
[1723319481071,1.91814,2606.7,2606.3,2.6268]
[1723319481271,0.10376172,2606.5,2606.3,2.6268]
[1723319481512,1.91822,2606.6,2606.3,2.6268]
[1723319481683,0.10386156,2606.4,2606.3,2.6268]
[1723319481883,1.91822,2606.6,2606.3,2.6268]
[1723319482085,0.10386156,2606.4,2606.3,2.6268]
[1723319482316,1.91822,2606.6,2606.3,2.6268]
[1723319482615,0.10386156,2606.4,2606.3,2.6268]
[1723319482976,1.91822,2606.6,2606.3,2.6268]
[1723319483313,0.10394956,2606.5,2606.3,2.6268]
[1723319487045,2.02223956,2606.5,2606.3,2.6268]
[1723319487252,0.53635672,2606.5,2606.3,2.6268]
[1723319487407,0.10394956,2606.5,2606.3,2.6268]
[1723319489737,3.83619,2606.8,2606.3,2.6268]
[1723319489923,0.10387801,2606.4,2606.3,2.6268]
[1723319490123,1.91813,2606.7,2606.3,2.6268]
[1723319490331,0.10376081,2606.4,2606.3,2.44969179]
[1723319490529,7.3,2607.0,2606.5,2.612]
[1723319491154,7.3,2607.0,2606.6,2.612]
[1723319491517,7.3,2607.0,2606.7,2.612]
[1723319491751,1.91782,2607.2,2606.7,2.612]
[1723319491960,4.3617171,2607.2,2606.7,2.612]
[1723319492964,6.2795371,2607.2,2606.7,2.612]
[1723319493441,4.3617171,2607.2,2606.7,2.612]
[1723319493642,1.91782,2607.2,2606.7,2.612]
[1723319495847,1.91789,2607.1,2606.7,2.612]
[1723319496047,1.91796,2607.0,2606.7,2.612]
[1723319496247,3.83593,2607.0,2606.7,2.612]
[1723319496560,2.301553,2607.0,2606.7,2.612]
[1723319497647,0.10373794,2606.9,2606.7,2.612]
[1723319502367,3.07706,2606.8,2606.2,2.6709]
[1723319502566,1.159,2606.6,2606.2,2.6709]
[1723319502870,0.10316427,2606.5,2606.2,2.6709]
[1723319503324,0.10316427,2606.5,2606.2,1.91848]
[1723319503529,0.10316427,2606.5,2606.3,2.6709]
[1723319503769,3.07706,2606.8,2606.3,2.6709]
[1723319503963,0.10327185,2606.4,2606.3,2.6709]
[1723319504566,1.159,2606.8,2606.3,2.6709]
[1723319504750,7.683593,2607.0,2606.3,5.82501142]
[1723319504751,0.1031895,2606.4,2606.3,5.82501142]
[1723319504952,7.3,2607.0,2606.6,2.6709]
[1723319505338,0.10339029,2606.9,2606.6,2.6709]
[1723319505663,0.10339029,2606.9,2606.6,1.99491945]
[1723319505872,0.10339029,2606.9,2606.7,2.6709]
[1723319506045,0.10339029,2606.9,2606.8,2.6709]
[1723319506772,0.10339029,2606.9,2606.8,5.05553394]
[1723319507141,1.159,2607.4,2607.0,2.6709]
[1723319507765,1.159,2607.4,2607.0,4.5888]
[1723319507967,1.159,2607.4,2607.1,2.6709]
[1723319509963,4.91751,2607.6,2607.1,2.6709]
[1723319510169,2.660494,2607.5,2607.1,2.6709]
[1723319510969,2.660494,2607.5,2607.2,2.6709]
[1723319511273,3.0,2607.6,2607.2,2.6709]
[1723319512732,0.10422777,2607.5,2607.2,2.6709]
[1723319513471,4.91743,2607.7,2607.2,2.6709]
[1723319513773,0.10431572,2607.6,2607.2,2.6709]
[1723319519692,0.10431572,2607.6,2607.3,1.91768]
[1723319519978,7.3,2607.8,2607.4,2.5822]
[1723319520165,0.10439171,2607.5,2607.4,2.5822]
[1723319520350,7.3,2607.8,2607.4,2.5822]
[1723319520545,0.10439171,2607.5,2607.4,2.5822]
[1723319521044,7.3,2607.8,2607.4,2.5822]
[1723319521238,0.10456761,2607.7,2607.4,2.5822]
[1723319521459,7.3,2607.8,2607.4,2.5822]
[1723319521692,0.10450854,2607.7,2607.4,2.5822]
[1723319521871,7.3,2607.8,2607.4,2.5822]
[1723319522076,0.10450854,2607.7,2607.4,2.5822]
[1723319522276,9.21732,2607.8,2607.4,2.5822]
[1723319522491,0.10450854,2607.7,2607.4,2.5822]
[1723319522685,7.3,2607.8,2607.5,2.5822]
[1723319522854,0.10430381,2607.7,2607.5,2.5822]
[1723319523050,7.3,2607.8,2607.5,2.5822]
[1723319523366,0.10434056,2607.7,2607.5,2.5822]
[1723319524002,0.10436759,2607.6,2607.5,2.5822]
[1723319524496,0.10436759,2607.6,2607.0,2.5822]
[1723319524497,1.91764,2607.4,2607.0,2.5822]
[1723319524649,0.10453109,2607.3,2607.0,2.5822]
[1723319525556,2.02222109,2607.3,2607.0,2.5822]
[1723319525752,1.91783,2607.1,2607.0,2.5822]
[1723319526153,2.02174936,2607.1,2607.0,2.5822]
[1723319529354,0.10391936,2607.1,2607.0,2.5822]
[1723319529700,1.26291936,2607.1,2607.0,2.5822]
[1723319530003,1.5809883,2607.1,2607.0,2.5822]
[1723319530205,1.91804,2606.9,2606.4,2.5822]
[1723319530385,3.07704,2606.9,2606.4,2.5822]
[1723319530712,1.159,2606.7,2606.4,2.5822]
[1723319530889,0.10258033,2606.6,2606.4,2.5822]
[1723319532192,4.99506,2606.9,2606.4,2.5822]
[1723319532380,0.10341463,2606.5,2606.4,2.5822]
[1723319532583,3.07702,2606.9,2606.4,2.5822]
[1723319532763,0.10341463,2606.5,2606.4,2.5822]
[1723319532965,10.3,2607.2,2606.4,2.5822]
[1723319532966,14.13561,2607.2,2606.4,2.5822]
[1723319533199,0.10296365,2606.5,2606.4,4.50055]
[1723319533401,1.159,2607.0,2606.7,2.5822]
[1723319534987,1.91799,2606.9,2606.7,2.5822]
[1723319535187,1.159,2606.8,2606.7,2.5822]
[1723319535386,3.07706,2606.8,2606.7,2.5822]
[1723319537903,1.159,2606.8,2606.7,2.5822]
[1723319539004,3.07706,2606.8,2606.7,2.5822]
[1723319539186,3.07706,2606.8,2606.2,1.91845]
[1723319539187,3.7295044,2606.8,2606.1,2.8464]
[1723319539395,1.159,2606.5,2606.1,2.8464]
[1723319542744,0.10204486,2606.4,2606.1,2.8464]
[1723319544346,0.10204486,2606.4,2605.7,1.159]
[1723319544347,1.91873,2605.9,2605.5,2.8464]
[1723319544561,1.159,2605.9,2605.5,2.8464]
[1723319544768,0.10143051,2605.8,2605.5,2.8464]
[1723319545268,2.02023051,2605.8,2605.5,2.8464]
[1723319545729,0.10143051,2605.8,2605.5,2.8464]
[1723319546792,1.91893,2605.7,2605.5,2.8464]
[1723319547245,0.10102556,2605.6,2605.5,2.8464]
[1723319548124,0.30302112,2605.6,2605.5,2.8464]
[1723319548373,1.91914,2605.4,2605.0,2.8464]
[1723319548525,1.9193,2605.2,2605.0,2.8464]
[1723319548730,0.10174681,2605.1,2605.0,2.8464]
[1723319549167,2.02105681,2605.1,2605.0,2.8464]
[1723319549338,3.83876,2605.0,2604.9,0.1261707]
[1723319549741,3.94025283,2605.0,2604.9,0.1261707]
[1723319549934,5.02087283,2605.0,2604.9,0.1261707]
[1723319550334,7.49025283,2605.0,2604.9,0.1261707]
[1723319550554,8.55708168,2605.0,2604.9,0.1261707]
[1723319550953,10.47646168,2605.0,2604.9,0.1261707]
[1723319551549,8.55708168,2605.0,2604.9,0.1261707]
[1723319551747,10.47646168,2605.0,2604.9,0.1261707]
[1723319552276,8.55708168,2605.0,2604.9,0.1261707]
[1723319552771,8.00708168,2605.0,2604.9,0.1261707]
[1723319553074,5.02087283,2605.0,2604.9,0.1261707]
[1723319553284,2.02087283,2605.0,2604.9,0.1261707]
[1723319553429,0.10149283,2605.0,2604.9,0.1261707]
[1723319553853,1.91938,2605.0,2604.9,0.1261707]
[1723319554067,0.10061602,2605.0,2604.9,0.1261707]
[1723319554268,1.91938,2605.0,2604.9,0.1261707]
[1723319554479,1.91933,2605.1,2604.9,0.1261707]
[1723319554636,0.10061602,2605.0,2604.9,0.1261707]
[1723319554837,2.01999602,2605.0,2604.9,0.1261707]
[1723319555036,0.10061602,2605.0,2604.9,0.1261707]
[1723319555274,0.10061602,2605.0,2604.9,2.8635707]
[1723319555694,1.91921,2605.3,2604.9,2.8635707]
[1723319555695,1.91924,2605.2,2604.9,2.8635707]
[1723319555864,0.10071619,2605.0,2604.9,2.8635707]
[1723319556177,0.1007231,2605.0,2604.9,2.8635707]
[1723319556331,1.91924,2605.2,2604.9,2.8635707]
[1723319556531,0.10081123,2605.1,2604.9,2.8635707]
[1723319557564,3.83876,2605.0,2604.9,0.1261707]
[1723319558057,3.93957686,2605.0,2604.9,0.1261707]
[1723319559162,2.02019686,2605.0,2604.9,0.1261707]
[1723319559359,3.06093905,2605.0,2604.9,0.1261707]
[1723319559563,0.10081686,2605.0,2604.9,0.1261707]
[1723319560982,2.02019686,2605.0,2604.9,0.1261707]
[1723319561663,3.93957686,2605.0,2604.9,0.1261707]
[1723319563868,3.93957686,2605.0,2604.9,0.09767977]
[1723319564453,2.02019686,2605.0,2604.9,0.09767977]
[1723319564778,0.10081686,2605.0,2604.9,0.09767977]
[1723319565087,0.10081686,2605.0,2604.9,2.83507977]
[1723319565285,1.91926,2605.2,2604.9,2.83507977]
[1723319565459,0.1007639,2605.0,2604.9,2.83507977]
[1723319565653,1.91926,2605.2,2604.9,2.83507977]
[1723319565859,0.1007639,2605.0,2604.9,2.83507977]
[1723319566337,2.881498,2605.2,2604.9,2.83507977]
[1723319566537,0.10085203,2605.1,2604.9,2.83507977]
[1723319567497,3.0,2605.3,2604.9,2.83507977]
[1723319568000,0.10094015,2605.2,2604.9,2.83507977]
[1723319568359,2.50777402,2605.2,2604.9,2.83507977]
[1723319568597,0.10107775,2605.1,2604.9,2.83507977]
[1723319570403,2.02040775,2605.1,2604.9,2.83507977]
[1723319573196,0.10107775,2605.1,2604.9,2.83507977]
[1723319576008,3.83876,2605.0,2604.9,2.83507977]
[1723319576185,4.29159318,2605.0,2604.9,2.83507977]
[1723319576374,4.39256271,2605.0,2604.9,2.83507977]
[1723319578415,5.72132217,2605.0,2604.9,2.83507977]
[1723319578706,5.72133373,2605.0,2604.9,2.83507977]
[1723319579273,3.80195373,2605.0,2604.9,2.83507977]
[1723319581084,5.72133373,2605.0,2604.9,2.83507977]
[1723319581411,3.80198687,2605.0,2604.9,2.83507977]
[1723319581617,3.80198687,2605.0,2604.9,0.09767977]
[1723319581783,2.47318271,2605.0,2604.9,0.09767977]
[1723319581987,3.80197806,2605.0,2604.9,0.09767977]
[1723319583803,1.42976488,2605.0,2604.9,2.73057977]
[1723319584005,0.10096953,2605.0,2604.9,2.73057977]
[1723319584619,0.10088217,2605.0,2604.9,2.73057977]
[1723319584979,4.91926,2605.2,2604.9,2.73057977]
[1723319585315,1.32867896,2605.1,2604.9,2.73057977]
[1723319585626,0.10088217,2605.0,2604.9,2.73057977]
[1723319585918,1.42956629,2605.0,2604.9,2.73057977]
[1723319586123,3.34894629,2605.0,2604.9,2.73057977]
[1723319588221,2.02026217,2605.0,2604.9,2.73057977]
[1723319588527,3.3489945,2605.0,2604.9,2.73057977]
[1723319588692,1.4296145,2605.0,2604.9,2.73057977]
[1723319590954,3.98388795,2605.0,2604.9,2.73057977]
[1723319592325,2.65515562,2605.0,2604.9,2.73057977]
[1723319592516,3.98389405,2605.0,2604.9,2.73057977]
[1723319594904,2.06451405,2605.0,2604.9,2.73057977]
[1723319595106,3.3490006,2605.0,2604.9,2.73057977]
[1723319595348,3.34902394,2605.0,2604.9,2.73057977]
[1723319596531,5.26840394,2605.0,2604.9,2.73057977]
[1723319597025,3.34902394,2605.0,2604.9,2.73057977]
[1723319597769,1.42964394,2605.0,2604.9,2.73057977]
[1723319597969,1.42964394,2605.0,2604.9,4.92308775]
[1723319597970,0.10088217,2605.0,2604.9,4.92308775]
[1723319598177,0.10088217,2605.0,2604.9,3.00363775]
[1723319598327,9.21907,2605.5,2604.9,3.00363775]
[1723319598534,9.21907,2605.5,2604.9,2.73057977]
[1723319598535,3.3488833,2605.4,2604.9,2.73057977]
[1723319598763,2.02038741,2605.4,2604.9,2.73057977]
[1723319598935,1.32852219,2605.3,2604.9,2.73057977]
[1723319599135,0.10111121,2605.2,2604.9,2.73057977]
[1723319599434,1.9191,2605.4,2604.9,2.73057977]
[1723319599637,0.1010231,2605.1,2604.9,2.73057977]
[1723319599954,0.10093498,2605.0,2604.9,4.65002977]
[1723319600155,7.3,2605.5,2605.1,2.6576]
[1723319600361,0.10128741,2605.4,2605.1,2.6576]
[1723319601861,0.10128741,2605.4,2605.2,2.6576]
[1723319602168,0.10119931,2605.3,2605.2,2.6576]
[1723319602389,6.928751,2605.6,2605.2,2.6576]
[1723319602542,0.10119931,2605.3,2605.2,2.6576]
[1723319602730,6.928751,2605.6,2605.2,2.6576]
[1723319602934,0.1013755,2605.5,2605.2,2.6576]
[1723319603463,2.78138815,2605.5,2605.2,2.6576]
[1723319603784,1.91914,2605.4,2605.2,2.6576]
[1723319604077,1.91932,2605.1,2605.0,2.6576]
[1723319604460,2.02008061,2605.1,2605.0,2.6576]
[1723319604664,2.41400467,2605.1,2605.0,2.6576]
[1723319605434,4.33332467,2605.1,2605.0,2.6576]
[1723319606486,2.41400467,2605.1,2605.0,2.6576]
[1723319606970,3.74272039,2605.1,2605.0,2.6576]
[1723319608482,1.82340039,2605.1,2605.0,2.6576]
[1723319608640,0.10076061,2605.1,2605.0,2.6576]
[1723319609770,2.02007061,2605.1,2605.0,2.6576]
[1723319610641,1.91938,2605.0,2604.9,0.09767977]
[1723319610835,2.12139406,2605.0,2604.9,0.09767977]
[1723319611037,2.22225599,2605.0,2604.9,0.09767977]
[1723319611240,0.10086193,2605.0,2604.9,2.75527977]
[1723319611543,3.83856,2605.2,2604.9,2.75527977]
[1723319611884,0.10095005,2605.1,2604.9,2.75527977]
[1723319612678,2.02027005,2605.1,2604.9,2.75527977]
[1723319612885,2.41422406,2605.1,2604.9,2.75527977]
[1723319614400,0.49490406,2605.1,2604.9,2.75527977]
[1723319614565,0.10095005,2605.1,2604.9,2.75527977]
[1723319614966,28.98907,2605.5,2604.9,2.75527977]
[1723319615177,0.10121434,2605.4,2604.9,2.75527977]
[1723319616494,0.10121434,2605.4,2605.0,1.91938]
[1723319616661,0.10121434,2605.4,2605.1,2.7869]
[1723319618097,1.91917,2605.3,2605.1,2.7869]
[1723319618595,0.10121984,2605.2,2605.1,2.7869]
[1723319619099,1.91917,2605.3,2605.1,2.7869]
[1723319619260,0.10121984,2605.2,2605.1,2.7869]
[1723319619673,1.91917,2605.3,2605.1,2.7869]
[1723319619869,0.10121984,2605.2,2605.1,2.7869]
[1723319620377,3.93967984,2605.2,2605.1,2.7869]
[1723319620598,1.91938,2605.0,2604.9,2.88457977]
[1723319620974,2.02042363,2605.0,2604.9,2.88457977]
[1723319622920,0.10104363,2605.0,2604.9,2.88457977]
[1723319623103,0.10104363,2605.0,2604.9,5.28444675]
[1723319623305,7.3,2605.5,2605.0,2.7869]
[1723319623510,9.21907,2605.5,2605.1,2.7869]
[1723319623694,12.309871,2605.5,2605.1,2.7869]
[1723319625384,1.3285303,2605.4,2605.1,2.7869]
[1723319625582,5.009871,2605.5,2605.1,2.7869]